fUSD/lending_fUSD_20250929
["ID","MTS","AMOUNT","RATE_DAILY","PERIOD"]
[388354398,1759117570421,500.0,0.000245,30]
[388354399,1759117572267,500.0,0.000245,30]
[388354400,1759117579939,150.0,0.000245,30]
[388354401,1759117584021,500.0,0.000245,30]
[388354402,1759117587116,500.0,0.000245,30]
[388354403,1759117588979,1453.0,0.000245,30]
[388354407,1759117599360,500.0,0.000245,30]
[388354408,1759117601718,150.0,0.000245,30]
[388354409,1759117603099,500.0,0.000245,30]
[388354410,1759117604754,150.0,0.000245,30]
[388354411,1759117606172,596.0,0.000245,30]
[388354416,1759117661728,150.0,0.000245,30]
[388354419,1759117663054,500.0,0.000245,30]
[388354420,1759117664815,500.0,0.000245,30]
[388354421,1759117666067,500.0,0.000245,30]
[388354422,1759117669009,500.0,0.000245,30]
[388354423,1759117671273,150.0,0.000245,30]
[388354424,1759117674069,248.54890191,0.000245,30]
[388354425,1759117674886,500.0,0.000245,30]
[388354426,1759117676318,500.0,0.000245,30]
[388354427,1759117677351,150.0,0.000245,30]
[388354428,1759117679226,150.0,0.000245,30]
[388354430,1759117681004,150.0,0.000245,30]
[388354431,1759117682065,500.0,0.000245,30]
[388354432,1759117684200,-151.0,0.00015444,2]
[388354434,1759117743968,-152.72510397,0.00015444,2]
[388354435,1759117750070,150.0,0.000245,30]
[388354436,1759117751357,420.0,0.000245,30]
[388354437,1759117755779,500.0,0.000245,30]
[388354438,1759117759761,849.0,0.000245,30]
[388354439,1759117771579,491.0,0.000245,30]
[388354440,1759117775097,-311.41104803,0.00015444,2]
[388354441,1759117776796,-352.73621733,0.00015444,2]
[388354442,1759117778494,-220.17273464,0.00015444,2]
[388354443,1759117778721,-115.68,0.00015444,2]
[388354444,1759117778748,-384.32,0.00015444,2]
[388354445,1759117781553,1452.0,0.000245,30]
[388354446,1759117782653,-419.76878755,0.00015444,2]
[388354450,1759117810331,150.0,0.000245,30]
[388354451,1759117815806,5398.0,0.000245,30]
[388354452,1759117827015,500.0,0.000245,30]
[388354491,1759117838028,-254.77713826,0.0001585,2]
[388354493,1759117838039,-160.87,0.00016256,2]
[388354495,1759117838051,-281.66166427,0.00016358,2]
[388354498,1759117838063,-776.006152,0.00016903,2]
[388354500,1759117838074,-250.0,0.00016988,2]
[388354502,1759117838085,-160.87,0.00017069,2]
[388354504,1759117838096,-152.0,0.00017162,5]
[388354506,1759117838109,-1342.82,0.00017367,2]
[388354508,1759117838119,-1000.0,0.00017435,2]
[388354510,1759117838131,-250.0,0.00017435,2]
[388354512,1759117838141,-225.21,0.00017448,2]
[388354514,1759117838153,-300.0,0.00017453,2]
[388354516,1759117838164,-11268.79852542,0.00017454,2]
[388354519,1759117838177,-5567.24147458,0.00017454,2]
[388354521,1759117838188,-666.0,0.00017465,3]
[388354523,1759117838198,-1143.1284149,0.00017761,7]
[388354525,1759117838208,-169.99,0.00017764,2]
[388354527,1759117838219,-757.08425491,0.0001782,2]
[388354529,1759117838230,-152.0,0.00017858,6]
[388354531,1759117838241,-299.99,0.00017858,4]
[388354533,1759117838252,-500.0,0.0001787,2]
[388354535,1759117838263,-372.68528872,0.0001787,2]
[388354537,1759117838274,-499.99999999,0.0001787,2]
[388354540,1759117838285,-204.97781259,0.00017871,2]
[388354542,1759117838295,-8260.13072239,0.00017871,2]
[388354544,1759117838306,-195.0,0.00017882,2]
[388354546,1759117838316,-2000.0,0.00017882,2]
[388354548,1759117838327,-160.87,0.00017882,2]
[388354550,1759117838338,-8565.75555911,0.00017926,2]
[388354552,1759117838350,-3875.92557556,0.00017981,2]
[388354554,1759117838361,-1626.76,0.00018082,2]
[388354556,1759117838372,-895.92,0.00018082,2]
[388354558,1759117838387,-1611.61,0.00018082,2]
[388354561,1759117838398,-473.29,0.00018141,2]
[388354563,1759117838409,-757.08425491,0.00018156,2]
[388354565,1759117838419,-165.18,0.000182,2]
[388354567,1759117838429,-165.18,0.000182,2]
[388354569,1759117838439,-165.18,0.000182,2]
[388354571,1759117838450,-165.18,0.000182,2]
[388354573,1759117838460,-165.18,0.000182,2]
[388354575,1759117838470,-165.19,0.000182,2]
[388354577,1759117838480,-165.19,0.000182,2]
[388354579,1759117838490,-165.19,0.000182,2]
[388354581,1759117838500,-165.19,0.000182,2]
[388354583,1759117838511,-165.19,0.000182,2]
[388354585,1759117838521,-168.0,0.00018254,2]
[388354587,1759117838531,-233.0,0.00018301,2]
[388354589,1759117838541,-225.21,0.0001832,2]
[388354591,1759117838552,-233.0,0.00018344,2]
[388354594,1759117838562,-354.56736556,0.00018364,2]
[388354596,1759117838573,-200.0,0.00018379,2]
[388354598,1759117838583,-200.0,0.00018379,2]
[388354600,1759117838594,-200.0,0.00018379,2]
[388354602,1759117838604,-200.0,0.00018379,2]
[388354604,1759117838615,-190.97110613,0.00018379,2]
[388354606,1759117838625,-500.0,0.00018379,2]
[388354608,1759117838636,-500.0,0.00018379,2]
[388354610,1759117838646,-484.47516921,0.00018379,2]
[388354612,1759117838656,-499.0,0.0001839,2]
[388354615,1759117838666,-831.91880863,0.00018449,2]
[388354617,1759117838679,-2793.65979137,0.00018449,2]
[388354619,1759117838689,-1876.06965228,0.00018451,2]
[388354621,1759117838699,-7801.05,0.00018533,2]
[388354623,1759117838709,-233.0,0.00018542,2]
[388354625,1759117838719,-154.055219,0.00018549,4]
[388354627,1759117838729,-6411.13126019,0.00018551,2]
[388354629,1759117838739,-152.0,0.00018554,7]
[388354631,1759117838749,-233.0,0.00018571,2]
[388354633,1759117838759,-233.0,0.00018589,2]
[388354635,1759117838769,-757.08425491,0.00018598,2]
[388354637,1759117838781,-154.055219,0.00018599,4]
[388354640,1759117838791,-262.0,0.000186,2]
[388354642,1759117838802,-1876.0696522,0.00018612,2]
[388354644,1759117838812,-787.0,0.00018638,2]
[388354646,1759117838821,-1264.0,0.00018638,2]
[388354648,1759117838832,-2044.0,0.00018638,2]
[388354650,1759117838842,-3398.0,0.00018638,2]
[388354652,1759117838852,-603.0,0.00018638,2]
[388354654,1759117838862,-814.0,0.00018638,2]
[388354656,1759117838872,-4113.0,0.00018638,2]
[388354658,1759117838882,-728.0,0.00018638,2]
[388354660,1759117838891,-10609.87083746,0.00018638,2]
[388354919,1759117841470,150.0,0.000245,30]
[388355008,1759117842294,-8306.12916254,0.00018638,2]
[388355010,1759117842303,-6232.0,0.00018638,2]
[388355012,1759117842313,-757.08425491,0.00018641,2]
[388355014,1759117842325,-154.055219,0.00018649,4]
[388355018,1759117842334,-1259.52045513,0.00018689,2]
[388355021,1759117842344,-154.055219,0.00018699,4]
[388355023,1759117842356,-1876.0696522,0.00018773,2]
[388355026,1759117842366,-168.0,0.0001879,2]
[388355028,1759117842376,-154.055219,0.00018795,2]
[388355031,1759117842386,-1000.0,0.000188,2]
[388355033,1759117842396,-1000.0,0.000188,2]
[388355035,1759117842405,-14580.12435473,0.00018804,2]
[388355037,1759117842415,-1836.846,0.00018805,2]
[388355039,1759117842424,-177.121,0.00018805,2]
[388355041,1759117842434,-806.58,0.00018823,2]
[388355043,1759117842444,-1180.71,0.00018823,2]
[388355045,1759117842455,-946.58,0.00018829,2]
[388355047,1759117842464,-1612.82,0.00018829,2]
[388355049,1759117842474,-154.055219,0.00018852,7]
[388355052,1759117842484,-582.0,0.00018904,2]
[388355054,1759117842494,-153.0,0.00018904,2]
[388355056,1759117842504,-153.0,0.00018904,2]
[388355058,1759117842514,-153.0,0.00018904,2]
[388355060,1759117842524,-153.0,0.00018904,2]
[388355062,1759117842534,-153.0,0.00018904,2]
[388355063,1759117842543,-153.0,0.00018904,2]
[388355066,1759117842553,-153.0,0.00018904,2]
[388355068,1759117842563,-153.0,0.00018904,2]
[388355070,1759117842573,-153.0,0.00018904,2]
[388355072,1759117842582,-153.0,0.00018904,2]
[388355074,1759117842591,-153.0,0.00018904,2]
[388355076,1759117842602,-153.0,0.00018904,2]
[388355078,1759117842611,-153.0,0.00018904,2]
[388355080,1759117842620,-153.0,0.00018904,2]
[388355082,1759117842629,-153.0,0.00018904,2]
[388355084,1759117842640,-153.0,0.00018904,2]
[388355086,1759117842650,-153.0,0.00018904,2]
[388355088,1759117842659,-153.0,0.00018904,2]
[388355090,1759117842668,-153.0,0.00018904,2]
[388355092,1759117842677,-153.0,0.00018904,2]
[388355094,1759117842687,-153.0,0.00018904,2]
[388355096,1759117842696,-153.0,0.00018904,2]
[388355098,1759117842706,-153.0,0.00018904,2]
[388355100,1759117842718,-153.0,0.00018904,2]
[388355102,1759117842728,-153.0,0.00018904,2]
[388355104,1759117842737,-153.0,0.00018904,2]
[388355106,1759117842747,-278.0,0.00018904,2]
[388355108,1759117842758,-278.0,0.00018904,2]
[388355110,1759117842767,-278.0,0.00018904,2]
[388355112,1759117842777,-278.0,0.00018904,2]
[388355114,1759117842787,-278.0,0.00018904,2]
[388355116,1759117842797,-278.0,0.00018904,2]
[388355118,1759117842808,-278.0,0.00018904,2]
[388355120,1759117842818,-278.0,0.00018904,2]
[388355122,1759117842830,-278.0,0.00018904,2]
[388355124,1759117842839,-278.0,0.00018904,2]
[388355126,1759117842850,-278.0,0.00018904,2]
[388355147,1759117843201,-278.0,0.00018904,2]
[388355151,1759117843228,-278.0,0.00018904,2]
[388355153,1759117843239,-278.0,0.00018904,2]
[388355155,1759117843248,-278.0,0.00018904,2]
[388355157,1759117843257,-278.0,0.00018904,2]
[388355159,1759117843267,-278.0,0.00018904,2]
[388355161,1759117843277,-278.0,0.00018904,2]
[388355163,1759117843286,-278.0,0.00018904,2]
[388355165,1759117843296,-278.0,0.00018904,2]
[388355167,1759117843307,-278.0,0.00018904,2]
[388355169,1759117843316,-278.0,0.00018904,2]
[388355171,1759117843326,-278.0,0.00018904,2]
[388355173,1759117843336,-278.0,0.00018904,2]
[388355175,1759117843346,-278.0,0.00018904,2]
[388355177,1759117843355,-278.0,0.00018904,2]
[388355179,1759117843364,-278.0,0.00018904,2]
[388355181,1759117843374,-278.0,0.00018904,2]
[388355183,1759117843384,-278.0,0.00018904,2]
[388355185,1759117843394,-278.0,0.00018904,2]
[388355187,1759117843404,-278.0,0.00018904,2]
[388355189,1759117843414,-278.0,0.00018904,2]
[388355191,1759117843424,-278.0,0.00018904,2]
[388355193,1759117843434,-278.0,0.00018904,2]
[388355195,1759117843443,-278.0,0.00018904,2]
[388355197,1759117843454,-278.0,0.00018904,2]
[388355199,1759117843463,-278.0,0.00018904,2]
[388355202,1759117843473,-278.0,0.00018904,2]
[388355204,1759117843483,-278.0,0.00018904,2]
[388355206,1759117843492,-278.0,0.00018904,2]
[388355208,1759117843502,-278.0,0.00018904,2]
[388355210,1759117843511,-278.0,0.00018904,2]
[388355212,1759117843521,-278.0,0.00018904,2]
[388355214,1759117843531,-278.0,0.00018904,2]
[388355216,1759117843541,-278.0,0.00018904,2]
[388355218,1759117843550,-278.0,0.00018904,2]
[388355220,1759117843559,-278.0,0.00018904,2]
[388355222,1759117843569,-278.0,0.00018904,2]
[388355224,1759117843578,-278.0,0.00018904,2]
[388355226,1759117843588,-278.0,0.00018904,2]
[388355228,1759117843597,-278.0,0.00018904,2]
[388355230,1759117843607,-278.0,0.00018904,2]
[388355232,1759117843616,-278.0,0.00018904,2]
[388355234,1759117843626,-278.0,0.00018904,2]
[388355236,1759117843636,-278.0,0.00018904,2]
[388355238,1759117843646,-278.0,0.00018904,2]
[388355240,1759117843655,-278.0,0.00018904,2]
[388355242,1759117843666,-278.0,0.00018904,2]
[388355244,1759117843675,-278.0,0.00018904,2]
[388355246,1759117843684,-278.0,0.00018904,2]
[388355248,1759117843694,-278.0,0.00018904,2]
[388355251,1759117843703,-278.0,0.00018904,2]
[388355252,1759117843713,-278.0,0.00018904,2]
[388355254,1759117843722,-278.0,0.00018904,2]
[388355256,1759117843732,-278.0,0.00018904,2]
[388355258,1759117843741,-278.0,0.00018904,2]
[388355261,1759117843751,-278.0,0.00018904,2]
[388355262,1759117843761,-278.0,0.00018904,2]
[388355264,1759117843770,-278.0,0.00018904,2]
[388355266,1759117843780,-278.0,0.00018904,2]
[388355269,1759117843789,-278.0,0.00018904,2]
[388355271,1759117843798,-278.0,0.00018904,2]
[388355272,1759117843808,-278.0,0.00018904,2]
[388355275,1759117843818,-278.0,0.00018904,2]
[388355277,1759117843828,-278.0,0.00018904,2]
[388355279,1759117843838,-278.0,0.00018904,2]
[388355281,1759117843847,-278.0,0.00018904,2]
[388355283,1759117843857,-278.0,0.00018904,2]
[388355285,1759117843868,-278.0,0.00018904,2]
[388355287,1759117843878,-278.0,0.00018904,2]
[388355289,1759117843887,-278.0,0.00018904,2]
[388355291,1759117843897,-187.0,0.00018904,2]
[388355293,1759117843907,-187.0,0.00018904,2]
[388355295,1759117843917,-187.0,0.00018904,2]
[388355297,1759117843927,-187.0,0.00018904,2]
[388355299,1759117843937,-187.0,0.00018904,2]
[388355301,1759117843947,-187.0,0.00018904,2]
[388355303,1759117843957,-187.0,0.00018904,2]
[388355305,1759117843966,-187.0,0.00018904,2]
[388355307,1759117843975,-187.0,0.00018904,2]
[388355309,1759117843985,-187.0,0.00018904,2]
[388355311,1759117843994,-187.0,0.00018904,2]
[388355313,1759117844004,-187.0,0.00018904,2]
[388355315,1759117844013,-187.0,0.00018904,2]
[388355318,1759117844023,-187.0,0.00018904,2]
[388355319,1759117844034,-187.0,0.00018904,2]
[388355321,1759117844045,-187.0,0.00018904,2]
[388355323,1759117844055,-187.0,0.00018904,2]
[388355325,1759117844064,-187.0,0.00018904,2]
[388355328,1759117844076,-187.0,0.00018904,2]
[388355330,1759117844087,-187.0,0.00018904,2]
[388355332,1759117844096,-187.0,0.00018904,2]
[388355334,1759117844107,-187.0,0.00018904,2]
[388355336,1759117844117,-187.0,0.00018904,2]
[388355338,1759117844127,-187.0,0.00018904,2]
[388355340,1759117844136,-187.0,0.00018904,2]
[388355342,1759117844146,-187.0,0.00018904,2]
[388355344,1759117844156,-187.0,0.00018904,2]
[388355346,1759117844165,-187.0,0.00018904,2]
[388355348,1759117844174,-187.0,0.00018904,2]
[388355350,1759117844184,-187.0,0.00018904,2]
[388355352,1759117844194,-187.0,0.00018904,2]
[388355354,1759117844204,-187.0,0.00018904,2]
[388355356,1759117844213,-187.0,0.00018904,2]
[388355358,1759117844223,-187.0,0.00018904,2]
[388355360,1759117844233,-187.0,0.00018904,2]
[388355362,1759117844242,-187.0,0.00018904,2]
[388355364,1759117844252,-187.0,0.00018904,2]
[388355366,1759117844263,-187.0,0.00018904,2]
[388355368,1759117844273,-187.0,0.00018904,2]
[388355370,1759117844282,-187.0,0.00018904,2]
[388355372,1759117844292,-187.0,0.00018904,2]
[388355375,1759117844302,-187.0,0.00018904,2]
[388355377,1759117844311,-187.0,0.00018904,2]
[388355379,1759117844321,-187.0,0.00018904,2]
[388355381,1759117844330,-187.0,0.00018904,2]
[388355383,1759117844340,-187.0,0.00018904,2]
[388355385,1759117844350,-187.0,0.00018904,2]
[388355387,1759117844359,-187.0,0.00018904,2]
[388355389,1759117844368,-187.0,0.00018904,2]
[388355391,1759117844382,-187.0,0.00018904,2]
[388355393,1759117844391,-187.0,0.00018904,2]
[388355395,1759117844401,-187.0,0.00018904,2]
[388355397,1759117844410,-187.0,0.00018904,2]
[388355399,1759117844420,-187.0,0.00018904,2]
[388355401,1759117844429,-187.0,0.00018904,2]
[388355403,1759117844439,-187.0,0.00018904,2]
[388355405,1759117844449,-187.0,0.00018904,2]
[388355407,1759117844458,-187.0,0.00018904,2]
[388355409,1759117844468,-187.0,0.00018904,2]
[388355412,1759117844478,-187.0,0.00018904,2]
[388355414,1759117844487,-187.0,0.00018904,2]
[388355416,1759117844496,-187.0,0.00018904,2]
[388355417,1759117844506,-187.0,0.00018904,2]
[388355420,1759117844516,-187.0,0.00018904,2]
[388355422,1759117844525,-187.0,0.00018904,2]
[388355424,1759117844535,-187.0,0.00018904,2]
[388355426,1759117844544,-187.0,0.00018904,2]
[388355428,1759117844553,-187.0,0.00018904,2]
[388355430,1759117844563,-187.0,0.00018904,2]
[388355432,1759117844572,-187.0,0.00018904,2]
[388355434,1759117844581,-187.0,0.00018904,2]
[388355436,1759117844591,-187.0,0.00018904,2]
[388355438,1759117844600,-187.0,0.00018904,2]
[388355440,1759117844609,-187.0,0.00018904,2]
[388355442,1759117844619,-187.0,0.00018904,2]
[388355444,1759117844629,-187.0,0.00018904,2]
[388355446,1759117844638,-187.0,0.00018904,2]
[388355448,1759117844647,-187.0,0.00018904,2]
[388355450,1759117844656,-187.0,0.00018904,2]
[388355452,1759117844665,-187.0,0.00018904,2]
[388355454,1759117844675,-187.0,0.00018904,2]
[388355456,1759117844684,-187.0,0.00018904,2]
[388355458,1759117844693,-187.0,0.00018904,2]
[388355460,1759117844703,-187.0,0.00018904,2]
[388355462,1759117844712,-187.0,0.00018904,2]
[388355464,1759117844722,-187.0,0.00018904,2]
[388355466,1759117844732,-187.0,0.00018904,2]
[388355468,1759117844741,-187.0,0.00018904,2]
[388355470,1759117844750,-187.0,0.00018904,2]
[388355472,1759117844760,-187.0,0.00018904,2]
[388355474,1759117844769,-187.0,0.00018904,2]
[388355476,1759117844779,-231.0,0.00018904,2]
[388355478,1759117844788,-154.055219,0.00018905,7]
[388355480,1759117844797,-202.34672489,0.0001891,2]
[388355482,1759117844807,-14580.12435473,0.00018926,2]
[388355484,1759117844817,-1876.0696522,0.00018934,2]
[388355487,1759117844827,-154.055219,0.00018958,7]
[388355489,1759117844836,-154.055219,0.00018986,2]
[388355491,1759117844846,-840.41814,0.0001899,2]
[388355493,1759117844856,-1064.60151,0.0001899,2]
[388355495,1759117844865,-175.22,0.0001899,2]
[388355497,1759117844874,-175.22,0.0001899,2]
[388355499,1759117844884,-175.22,0.0001899,2]
[388355501,1759117844893,-1000.0,0.00018999,2]
[388355503,1759117844903,-237675.05906122,0.00019,2]
[388355505,1759117844912,-757.08425491,0.00019002,2]
[388355507,1759117844921,-154.055219,0.0001901,7]
[388355509,1759117844931,-500.0,0.0001902,2]
[388355511,1759117844942,-1000.0,0.0001902,2]
[388355513,1759117844952,-202.34672484,0.0001902,2]
[388355515,1759117844962,-233.0,0.00019028,2]
[388355518,1759117844972,-14580.12435473,0.00019048,2]
[388355520,1759117844982,-420.0,0.00019054,2]
[388355522,1759117844992,-5372.0242293,0.00019064,2]
[388355524,1759117845001,-304.2757,0.00019077,2]
[388355526,1759117845012,-159.11228853,0.00019077,2]
[388355528,1759117845021,-830.87644237,0.00019077,2]
[388355530,1759117845031,-691.90964276,0.00019077,2]
[388355532,1759117845041,-206.08293094,0.00019077,2]
[388355534,1759117845056,-840.41814,0.0001909,2]
[388355536,1759117845066,-39241.2843207,0.00019094,2]
[388355538,1759117845075,-1876.0696522,0.00019095,2]
[388355540,1759117845085,-38345.4427407,0.00019096,2]
[388355542,1759117845096,-964.3801832,0.00019096,2]
[388355544,1759117845106,-39835.4072213,0.00019097,2]
[388355547,1759117845116,-752.63881785,0.00019099,2]
[388355623,1759117845799,-178.626,0.00019099,2]
[388355625,1759117845811,-67.73518215,0.00019099,2]
[388355627,1759117845821,-999.0,0.00019099,2]
[388355629,1759117845831,-999.0,0.00019099,2]
[388355631,1759117845841,-485.06537668,0.00019099,2]
[388355637,1759117845887,500.0,0.000245,30]
[388355654,1759117846041,-513.93462332,0.00019099,2]
[388355671,1759117846343,-999.0,0.00019099,2]
[388355673,1759117846353,-497.75435522,0.00019099,2]
[388355675,1759117846364,-501.24564478,0.00019099,2]
[388355677,1759117846375,-850.55322325,0.00019099,2]
[388355679,1759117846388,-148.44677675,0.00019099,2]
[388355681,1759117846397,-999.0,0.00019099,2]
[388355683,1759117846406,-999.0,0.00019099,2]
[388355686,1759117846416,-999.0,0.00019099,2]
[388355687,1759117846426,-999.0,0.00019099,2]
[388355689,1759117846435,-999.0,0.00019099,2]
[388355691,1759117846444,-540.74435522,0.00019099,2]
[388355806,1759117847511,150.0,0.000245,30]
[388355989,1759117849394,-423.33,0.000182,2]
[388355991,1759117849405,-423.33,0.00018474,2]
[388355993,1759117849414,-423.33,0.00018748,2]
[388355995,1759117849423,-3092.19,0.00018904,2]
[388355997,1759117849433,-223.61034969,0.00018999,2]
[388355999,1759117849442,-500.0,0.00018999,2]
[388356001,1759117849451,-158.56705207,0.00018999,2]
[388356004,1759117849461,-330.64386771,0.00018999,2]
[388356006,1759117849470,-423.33,0.00019022,2]
[388356008,1759117849480,-458.25564478,0.00019099,2]
[388356010,1759117849490,-999.0,0.00019099,2]
[388356012,1759117849499,-999.0,0.00019099,2]
[388356014,1759117849508,-999.0,0.00019099,2]
[388356016,1759117849517,-999.0,0.00019099,2]
[388356018,1759117849526,-999.0,0.00019099,2]
[388356020,1759117849535,-999.0,0.00019099,2]
[388356021,1759117849544,-1019.0,0.00019099,2]
[388356023,1759117849554,-1230.0,0.000191,3]
[388356026,1759117849563,-1230.0,0.000191,3]
[388356027,1759117849572,-150.0,0.000191,2]
[388356030,1759117849582,-2983.3976512,0.00019103,2]
[388356031,1759117849591,-202.34672484,0.0001913,2]
[388356033,1759117849600,-3227.78,0.00019151,2]
[388356036,1759117849610,-150.91,0.00019167,2]
[388356038,1759117849619,-150.91,0.00019167,2]
[388356040,1759117849628,-153.54819172,0.00019167,2]
[388356042,1759117849639,-14580.12435473,0.00019169,2]
[388356044,1759117849648,-6571.18606168,0.0001917,2]
[388356046,1759117849658,-168.0,0.0001917,2]
[388356048,1759117849667,-151.0,0.00019174,2]
[388356050,1759117849676,-277.51307112,0.00019174,2]
[388356052,1759117849685,-155.0,0.00019176,2]
[388356054,1759117849694,-151.0430149,0.00019176,2]
[388356056,1759117849703,-1000.0,0.00019176,2]
[388356058,1759117849713,-1000.0,0.00019176,2]
[388356060,1759117849723,-1023.33,0.00019176,2]
[388356062,1759117849731,-1000.0,0.00019176,2]
[388356064,1759117849741,-300.0,0.00019176,2]
[388356066,1759117849750,-300.0,0.00019176,2]
[388356068,1759117849760,-1779.0,0.00019177,2]
[388356070,1759117849769,-15691.20832698,0.00019177,2]
[388356072,1759117849779,-123629.66127168,0.00019177,2]
[388357168,1759117864802,252.07,0.000255,120]
[388357169,1759117887346,500.0,0.000245,30]
[388357170,1759117953332,500.0,0.000245,30]
[388357171,1759117955816,500.0,0.000245,30]
[388357172,1759117958317,665.0,0.000245,30]
[388357173,1759117968722,500.0,0.000245,30]
[388357174,1759117970554,150.0,0.000245,30]
[388357175,1759117971666,500.0,0.000245,30]
[388357176,1759117973285,1410.0,0.000245,30]
[388357177,1759117979444,571.0,0.000245,30]
[388357178,1759118085860,-179.0,0.0001995,15]
[388357180,1759118180828,960.0,0.000245,30]
[388357181,1759118188890,150.0,0.000245,30]
[388357182,1759118189642,297.68436099,0.000245,30]
[388357183,1759118191018,150.0,0.000245,30]
[388357184,1759118193532,1050.0,0.000245,30]
[388357185,1759118199557,500.0,0.000245,30]
[388357186,1759118205500,500.0,0.000245,30]
[388357187,1759118214184,672.0,0.000245,30]
[388357188,1759118224305,271.02932981,0.000245,30]
[388357189,1759118224961,500.0,0.000245,30]
[388357190,1759118231091,813.0,0.000245,30]
[388357191,1759118236095,500.0,0.000245,30]
[388357192,1759118238233,1383.0,0.000245,30]
[388357193,1759118238402,500.0,0.000245,30]
[388357194,1759118239960,500.0,0.000245,30]
[388357195,1759118243701,500.0,0.000245,30]
[388357196,1759118246943,150.0,0.000245,30]
[388357197,1759118247010,150.0,0.000245,30]
[388357198,1759118248206,150.0,0.000245,30]
[388357199,1759118249308,269.61898191,0.000245,30]
[388357200,1759118253413,499.0,0.000245,30]
[388357201,1759118258109,500.0,0.000245,30]
[388357202,1759118260919,150.0,0.000245,30]
[388357203,1759118262770,1351.0,0.000245,30]
[388357204,1759118269211,547.0,0.000245,30]
[388357205,1759118439862,150.0,0.000245,30]
[388357206,1759118441269,500.0,0.000245,30]
[388357207,1759118449055,479.0,0.000245,30]
[388357208,1759118464703,271.076654,0.000245,30]
[388357209,1759118485076,329.664303,0.000245,30]
[388357210,1759118504525,311.942792,0.000245,30]
[388357211,1759118524444,150.0,0.000245,30]
[388357212,1759118531670,5173.0,0.000245,30]
[388357213,1759118540858,500.0,0.000245,30]
[388357214,1759118605362,500.0,0.000245,30]
[388357215,1759118607602,150.0,0.000245,30]
[388357216,1759118608462,262.11956516,0.000245,30]
[388357217,1759118609154,500.0,0.000245,30]
[388357218,1759118613653,500.0,0.000245,30]
[388357219,1759118616958,150.0,0.000245,30]
[388357220,1759118618666,150.0,0.000245,30]
[388357221,1759118620293,500.0,0.000245,30]
[388357222,1759118623068,150.0,0.000245,30]
[388357223,1759118625201,500.0,0.000245,30]
[388357224,1759118630839,500.0,0.000245,30]
[388357225,1759118644595,500.0,0.000245,30]
[388357226,1759118650267,500.0,0.000245,30]
[388357227,1759118652458,1360.0,0.000245,30]
[388357228,1759118665782,500.0,0.000245,30]
[388357229,1759118667291,150.0,0.000245,30]
[388357230,1759118668914,1295.0,0.000245,30]